fUST/lending_fUST_20250626
["ID","MTS","AMOUNT","RATE_DAILY","PERIOD"]
[367586317,1750867842524,-460.0,0.00016712,2]
[367586319,1750867842533,-460.0,0.00016712,2]
[367586321,1750867842542,-460.0,0.00016712,2]
[367586323,1750867842552,-460.0,0.00016712,2]
[367586325,1750867842561,-460.0,0.00016712,2]
[367586327,1750867842570,-460.0,0.00016712,2]
[367586329,1750867842579,-460.0,0.00016712,2]
[367586331,1750867842589,-500.0,0.00016712,2]
[367586333,1750867842598,-460.0,0.00016712,2]
[367586335,1750867842607,-460.0,0.00016712,2]
[367586337,1750867842617,-460.0,0.00016712,2]
[367586339,1750867842626,-460.0,0.00016712,2]
[367586341,1750867842635,-460.0,0.00016712,2]
[367586343,1750867842645,-460.0,0.00016712,2]
[367586345,1750867842655,-334.5793865,0.00016712,2]
[367586347,1750867842666,-504.42756139,0.00016712,2]
[367586349,1750867842675,-460.0,0.00016712,2]
[367586351,1750867842684,-460.0,0.00016712,2]
[367586353,1750867842693,-460.0,0.00016712,2]
[367586355,1750867842703,-460.0,0.00016712,2]
[367586357,1750867842713,-460.0,0.00016712,2]
[367586359,1750867842722,-1869.13,0.00016712,2]
[367586361,1750867842731,-488.96,0.00016712,2]
[367586363,1750867842740,-553.29383763,0.00016712,2]
[367586365,1750867842749,-709.89,0.00016712,2]
[367586367,1750867842759,-424.21525838,0.00016712,2]
[367586369,1750867842768,-460.0,0.00016712,2]
[367586371,1750867842777,-460.0,0.00016712,2]
[367586373,1750867842786,-460.0,0.00016712,2]
[367586375,1750867842795,-464.03078145,0.00016712,2]
[367586377,1750867842805,-460.0,0.00016712,2]
[367586379,1750867842814,-460.0,0.00016712,2]
[367586381,1750867842823,-460.0,0.00016712,2]
[367586383,1750867842833,-460.0,0.00016712,2]
[367586385,1750867842842,-460.0,0.00016712,2]
[367586387,1750867842851,-460.0,0.00016712,2]
[367586389,1750867842860,-460.0,0.00016712,2]
[367586391,1750867842870,-579.66,0.00016712,2]
[367586393,1750867842879,-460.0,0.00016712,2]
[367586395,1750867842892,-540.03917037,0.00016712,2]
[367586397,1750867842901,-1305.25,0.00016712,2]
[367586399,1750867842911,-460.0,0.00016712,2]
[367586401,1750867842920,-460.0,0.00016712,2]
[367586403,1750867842930,-460.0,0.00016712,2]
[367586405,1750867842940,-460.0,0.00016712,2]
[367586407,1750867842950,-460.0,0.00016712,2]
[367586409,1750867842964,-489.57,0.00016712,2]
[367586411,1750867842974,-2329.61,0.00016712,2]
[367586413,1750867842983,-604.13400417,0.00016712,2]
[367586415,1750867842993,-460.0,0.00016712,2]
[367586418,1750867843002,-460.0,0.00016712,2]
[367586421,1750867843012,-460.0,0.00016712,2]
[367586424,1750867843021,-460.0,0.00016712,2]
[367586427,1750867843031,-536.1,0.00016712,2]
[367586430,1750867843040,-300.0,0.00016712,2]
[367586434,1750867843051,-460.0,0.00016712,2]
[367586437,1750867843060,-460.0,0.00016712,2]
[367586440,1750867843069,-460.0,0.00016712,2]
[367586444,1750867843079,-460.0,0.00016712,2]
[367586447,1750867843088,-460.0,0.00016712,2]
[367586449,1750867843097,-460.0,0.00016712,2]
[367586462,1750867843209,-4746.27,0.00016712,2]
[367586464,1750867843219,-460.0,0.00016712,2]
[367586466,1750867843229,-460.0,0.00016712,2]
[367586468,1750867843239,-460.0,0.00016712,2]
[367586470,1750867843249,-460.0,0.00016712,2]
[367586472,1750867843259,-464.94520971,0.00016712,2]
[367586474,1750867843268,-460.0,0.00016712,2]
[367586476,1750867843278,-1430.56,0.00016712,2]
[367586478,1750867843287,-460.0,0.00016712,2]
[367586480,1750867843297,-277.47618959,0.00016712,2]
[367586482,1750867843306,-523.7,0.00016712,2]
[367586484,1750867843315,-1185.87,0.00016712,2]
[367586486,1750867843325,-7129.38,0.00016712,2]
[367586488,1750867843334,-939.14,0.00016712,2]
[367586490,1750867843343,-460.0,0.00016712,2]
[367586492,1750867843353,-270.71606931,0.00016712,2]
[367586494,1750867843362,-460.0,0.00016712,2]
[367586496,1750867843371,-460.0,0.00016712,2]
[367586498,1750867843381,-460.0,0.00016712,2]
[367586500,1750867843390,-1017.09,0.00016712,2]
[367586502,1750867843399,-460.0,0.00016712,2]
[367586504,1750867843408,-460.0,0.00016712,2]
[367586506,1750867843418,-460.0,0.00016712,2]
[367586508,1750867843427,-648.22,0.00016712,2]
[367586510,1750867843437,-427.42883138,0.00016712,2]
[367586511,1750867843446,-460.0,0.00016712,2]
[367586514,1750867843458,-460.0,0.00016712,2]
[367586516,1750867843467,-3445.34,0.00016712,2]
[367586517,1750867843477,-460.0,0.00016712,2]
[367586519,1750867843487,-762.19,0.00016712,2]
[367586521,1750867843496,-460.0,0.00016712,2]
[367586523,1750867843506,-491.82,0.00016712,2]
[367586525,1750867843515,-460.0,0.00016712,2]
[367586527,1750867843524,-460.0,0.00016712,2]
[367586529,1750867843533,-460.0,0.00016712,2]
[367586531,1750867843542,-460.0,0.00016712,2]
[367586533,1750867843551,-460.0,0.00016712,2]
[367586537,1750867843562,-8043.92,0.00016712,2]
[367586541,1750867843571,-460.0,0.00016712,2]
[367586544,1750867843579,-460.0,0.00016712,2]
[367586547,1750867843588,-158.21779657,0.00016712,2]
[367586550,1750867843597,-460.0,0.00016712,2]
[367586553,1750867843606,-460.0,0.00016712,2]
[367586555,1750867843615,-5734.6,0.00016712,2]
[367586558,1750867843625,-465.60591005,0.00016712,2]
[367586561,1750867843635,-460.0,0.00016712,2]
[367586563,1750867843644,-460.0,0.00016712,2]
[367586565,1750867843653,-596.20970849,0.00016712,2]
[367586567,1750867843662,-460.0,0.00016712,2]
[367586569,1750867843671,-8605.38,0.00016712,2]
[367586571,1750867843680,-460.0,0.00016712,2]
[367586573,1750867843689,-460.0,0.00016712,2]
[367586575,1750867843699,-2986.69,0.00016712,2]
[367586577,1750867843708,-460.0,0.00016712,2]
[367586579,1750867843717,-460.0,0.00016712,2]
[367586580,1750867843727,-694.56,0.00016712,2]
[367586582,1750867843736,-1675.72,0.00016712,2]
[367586585,1750867843746,-460.0,0.00016712,2]
[367586587,1750867843755,-1410.05,0.00016712,2]
[367586588,1750867843767,-1578.67,0.00016712,2]
[367586590,1750867843777,-460.0,0.00016712,2]
[367586592,1750867843786,-4187.9,0.00016712,2]
[367586594,1750867843795,-460.0,0.00016712,2]
[367586596,1750867843804,-460.0,0.00016712,2]
[367586598,1750867843813,-8661.17,0.00016712,2]
[367586600,1750867843823,-862.47,0.00016712,2]
[367586602,1750867843832,-460.0,0.00016712,2]
[367586604,1750867843841,-460.0,0.00016712,2]
[367586606,1750867843850,-460.0,0.00016712,2]
[367586608,1750867843860,-414.79214721,0.00016712,2]
[367586610,1750867843870,-460.0,0.00016712,2]
[367586612,1750867843879,-563.8,0.00016712,2]
[367586614,1750867843893,-460.0,0.00016712,2]
[367586616,1750867843904,-460.0,0.00016712,2]
[367586618,1750867843913,-1771.15,0.00016712,2]
[367586620,1750867843922,-460.0,0.00016712,2]
[367586622,1750867843931,-697.01,0.00016712,2]
[367586624,1750867843941,-908.2,0.00016712,2]
[367586626,1750867843950,-460.0,0.00016712,2]
[367586628,1750867843960,-460.0,0.00016712,2]
[367586630,1750867843969,-390.0,0.00016712,2]
[367586632,1750867843979,-460.0,0.00016712,2]
[367586634,1750867843988,-460.0,0.00016712,2]
[367586636,1750867843997,-460.0,0.00016712,2]
[367586638,1750867844006,-4668.02,0.00016712,2]
[367586640,1750867844015,-1912.17,0.00016712,2]
[367586642,1750867844025,-1756.49,0.00016712,2]
[367586644,1750867844034,-460.0,0.00016712,2]
[367586646,1750867844043,-610.58,0.00016712,2]
[367586648,1750867844052,-460.0,0.00016712,2]
[367586650,1750867844061,-460.0,0.00016712,2]
[367586652,1750867844070,-460.0,0.00016712,2]
[367586654,1750867844079,-460.0,0.00016712,2]
[367586656,1750867844088,-460.0,0.00016712,2]
[367586658,1750867844097,-236.22034493,0.00016712,2]
[367586661,1750867844107,-629.93,0.00016712,2]
[367586662,1750867844117,-400.0,0.00016712,2]
[367586663,1750867844125,-460.0,0.00016712,2]
[367586664,1750867844135,-460.0,0.00016712,2]
[367586665,1750867844143,-460.0,0.00016712,2]
[367586666,1750867844152,-529.46664215,0.00016712,2]
[367586667,1750867844162,-1760.35,0.00016712,2]
[367586669,1750867844171,-460.0,0.00016712,2]
[367586671,1750867844180,-460.0,0.00016712,2]
[367586673,1750867844189,-1564.69,0.00016712,2]
[367586675,1750867844198,-460.0,0.00016712,2]
[367586677,1750867844209,-1886.61,0.00016712,2]
[367586679,1750867844218,-594.63,0.00016712,2]
[367586681,1750867844228,-460.0,0.00016712,2]
[367586683,1750867844237,-460.0,0.00016712,2]
[367586685,1750867844246,-593.22,0.00016712,2]
[367586687,1750867844261,-5417.69,0.00016712,2]
[367586688,1750867844271,-460.0,0.00016712,2]
[367586690,1750867844280,-460.0,0.00016712,2]
[367586692,1750867844289,-460.0,0.00016712,2]
[367586694,1750867844299,-561.17,0.00016712,2]
[367586696,1750867844308,-460.0,0.00016712,2]
[367586698,1750867844317,-460.0,0.00016712,2]
[367586700,1750867844326,-460.0,0.00016712,2]
[367586702,1750867844336,-460.0,0.00016712,2]
[367586704,1750867844346,-619.8,0.00016712,2]
[367586706,1750867844355,-460.0,0.00016712,2]
[367586708,1750867844364,-460.0,0.00016712,2]
[367586710,1750867844373,-460.0,0.00016712,2]
[367586712,1750867844383,-590.0,0.00016712,2]
[367586714,1750867844393,-460.0,0.00016712,2]
[367586716,1750867844402,-2506.56,0.00016712,2]
[367586718,1750867844412,-5374.08,0.00016712,2]
[367586720,1750867844421,-460.0,0.00016712,2]
[367586722,1750867844430,-859.04,0.00016712,2]
[367586724,1750867844440,-460.0,0.00016712,2]
[367586727,1750867844450,-460.0,0.00016712,2]
[367586729,1750867844460,-460.0,0.00016712,2]
[367586731,1750867844469,-839.14,0.00016712,2]
[367586733,1750867844479,-460.0,0.00016712,2]
[367586735,1750867844489,-736.19,0.00016712,2]
[367586737,1750867844498,-605.17,0.00016712,2]
[367586739,1750867844508,-460.0,0.00016712,2]
[367586741,1750867844516,-1527.49,0.00016712,2]
[367586743,1750867844526,-460.0,0.00016712,2]
[367586745,1750867844535,-472.76,0.00016712,2]
[367586747,1750867844545,-460.0,0.00016712,2]
[367586749,1750867844555,-460.0,0.00016712,2]
[367586751,1750867844564,-516.41,0.00016712,2]
[367586753,1750867844573,-460.0,0.00016712,2]
[367586755,1750867844582,-465.52295983,0.00016712,2]
[367586757,1750867844592,-460.0,0.00016712,2]
[367586759,1750867844601,-460.0,0.00016712,2]
[367586761,1750867844611,-460.0,0.00016712,2]
[367586763,1750867844620,-1612.98,0.00016712,2]
[367586765,1750867844629,-720.26,0.00016712,2]
[367586767,1750867844638,-460.0,0.00016712,2]
[367586769,1750867844648,-536.83,0.00016712,2]
[367586771,1750867844657,-254.445744,0.00016747,2]
[367586773,1750867844666,-1683.34296119,0.00016749,2]
[367586775,1750867844675,-500.0,0.00016773,2]
[367586777,1750867844684,-500.0,0.00016773,2]
[367586779,1750867844693,-500.0,0.00016773,2]
[367586781,1750867844703,-500.0,0.00016773,2]
[367586783,1750867844712,-500.0,0.00016773,2]
[367586785,1750867844721,-500.0,0.00016773,2]
[367586787,1750867844730,-500.0,0.00016773,2]
[367586789,1750867844739,-501.28082104,0.00016773,2]
[367586791,1750867844748,-500.0,0.00016773,2]
[367586793,1750867844757,-211.78202519,0.00016773,2]
[367586795,1750867844767,-453.20022986,0.00016773,2]
[367586797,1750867844776,-153.0,0.000168,2]
[367586799,1750867844786,-10529.43924731,0.00016816,2]
[367586801,1750867844795,-1683.34296119,0.00016886,2]
[367586803,1750867844804,-732.0170874,0.000169,2]
[367586805,1750867844814,-366.0085437,0.000169,2]
[367586807,1750867844823,-731.6589477,0.000169,2]
[367586809,1750867844833,-151.0,0.000169,2]
[367586811,1750867844842,-153.0,0.000169,2]
[367586813,1750867844851,-153.0,0.000169,2]
[367586815,1750867844861,-192.33833353,0.00016984,2]
[367586816,1750867844869,-445.62299843,0.00016986,2]
[367586818,1750867844879,-460.0,0.00016986,2]
[367586820,1750867844889,-460.0,0.00016986,2]
[367586822,1750867844898,-460.0,0.00016986,2]
[367586823,1750867844908,-460.0,0.00016986,2]
[367586825,1750867844917,-460.0,0.00016986,2]
[367586827,1750867844926,-460.0,0.00016986,2]
[367586829,1750867844936,-479.63,0.00016986,2]
[367586831,1750867844945,-460.0,0.00016986,2]
[367586833,1750867844955,-460.0,0.00016986,2]
[367586835,1750867844966,-531.11,0.00016986,2]
[367586837,1750867844975,-460.0,0.00016986,2]
[367586839,1750867844985,-581.7,0.00016986,2]
[367586841,1750867844993,-460.0,0.00016986,2]
[367586843,1750867845002,-424.1527029,0.00016986,2]
[367586845,1750867845012,-460.0,0.00016986,2]
[367586847,1750867845021,-460.0,0.00016986,2]
[367586849,1750867845030,-354.44033635,0.00016986,2]
[367586851,1750867845039,-460.0,0.00016986,2]
[367586853,1750867845049,-318.79558611,0.00016986,2]
[367586855,1750867845058,-415.63177093,0.00016986,2]
[367586857,1750867845068,-430.0,0.00016986,2]
[367586859,1750867845077,-460.0,0.00016986,2]
[367586861,1750867845086,-461.80672047,0.00016986,2]
[367586863,1750867845095,-460.0,0.00016986,2]
[367586865,1750867845104,-298.35773104,0.00016986,2]
[367586867,1750867845113,-460.0,0.00016986,2]
[367586869,1750867845122,-460.0,0.00016986,2]
[367586871,1750867845131,-460.0,0.00016986,2]
[367586873,1750867845140,-460.0,0.00016986,2]
[367586875,1750867845149,-267.55799223,0.00016986,2]
[367586877,1750867845159,-460.0,0.00016986,2]
[367586879,1750867845168,-460.0,0.00016986,2]
[367586881,1750867845178,-375.39438031,0.00016986,2]
[367586894,1750867845290,-460.0,0.00016986,2]
[367586896,1750867845300,-521.19468451,0.00016986,2]
[367586898,1750867845310,-190.02126792,0.00016986,2]
[367586900,1750867845320,-460.0,0.00016986,2]
[367586902,1750867845329,-461.4562673,0.00016986,2]
[367586904,1750867845339,-646.25,0.00016986,2]
[367586906,1750867845349,-561.30378121,0.00016986,2]
[367586908,1750867845359,-460.0,0.00016986,2]
[367586910,1750867845368,-460.0,0.00016986,2]
[367586911,1750867845378,-460.0,0.00016986,2]
[367586913,1750867845387,-460.0,0.00016986,2]
[367586915,1750867845397,-460.0,0.00016986,2]
[367586918,1750867845407,-303.51368971,0.00016986,2]
[367586920,1750867845416,-460.0,0.00016986,2]
[367586922,1750867845425,-460.0,0.00016986,2]
[367586924,1750867845434,-460.0,0.00016986,2]
[367586926,1750867845445,-460.0,0.00016986,2]
[367586927,1750867845456,-460.0,0.00016986,2]
[367586930,1750867845466,-384.37505497,0.00016986,2]
[367586932,1750867845475,-460.0,0.00016986,2]
[367586934,1750867845485,-460.0,0.00016986,2]
[367586936,1750867845494,-460.0,0.00016986,2]
[367586938,1750867845504,-243.51045502,0.00016986,2]
[367586940,1750867845514,-533.6,0.00016986,2]
[367586942,1750867845523,-460.0,0.00016986,2]
[367586944,1750867845533,-460.0,0.00016986,2]
[367586946,1750867845543,-460.0,0.00016986,2]
[367586948,1750867845553,-460.0,0.00016986,2]
[367586950,1750867845563,-460.0,0.00016986,2]
[367586952,1750867845572,-460.0,0.00016986,2]
[367586954,1750867845581,-460.0,0.00016986,2]
[367586956,1750867845591,-1114.41,0.00016986,2]
[367586958,1750867845601,-460.0,0.00016986,2]
[367586960,1750867845611,-460.0,0.00016986,2]
[367586962,1750867845620,-460.0,0.00016986,2]
[367586964,1750867845631,-460.0,0.00016986,2]
[367586966,1750867845641,-609.72791554,0.00016986,2]
[367586968,1750867845650,-460.0,0.00016986,2]
[367586970,1750867845660,-460.0,0.00016986,2]
[367586972,1750867845669,-460.0,0.00016986,2]
[367586974,1750867845679,-460.0,0.00016986,2]
[367586976,1750867845689,-460.0,0.00016986,2]
[367586978,1750867845698,-460.0,0.00016986,2]
[367586980,1750867845709,-492.04,0.00016986,2]
[367586982,1750867845718,-460.0,0.00016986,2]
[367586984,1750867845728,-1473.9,0.00016986,2]
[367586986,1750867845737,-460.0,0.00016986,2]
[367586988,1750867845746,-460.0,0.00016986,2]
[367586990,1750867845755,-460.0,0.00016986,2]
[367586992,1750867845766,-460.0,0.00016986,2]
[367586994,1750867845777,-460.0,0.00016986,2]
[367586996,1750867845786,-1737.03,0.00016986,2]
[367586998,1750867845796,-460.0,0.00016986,2]
[367587000,1750867845805,-303.02886467,0.00016986,2]
[367587002,1750867845814,-1010.74,0.00016986,2]
[367587004,1750867845823,-460.0,0.00016986,2]
[367587006,1750867845833,-460.0,0.00016986,2]
[367587008,1750867845842,-460.0,0.00016986,2]
[367587010,1750867845852,-183.47910251,0.00016986,2]
[367587012,1750867845862,-460.0,0.00016986,2]
[367587014,1750867845871,-460.0,0.00016986,2]
[367587016,1750867845882,-460.0,0.00016986,2]
[367587018,1750867845894,-2667.9,0.00016986,2]
[367587020,1750867845903,-460.0,0.00016986,2]
[367587022,1750867845913,-460.0,0.00016986,2]
[367587024,1750867845922,-460.0,0.00016986,2]
[367587027,1750867845932,-187.89646128,0.00016986,2]
[367587029,1750867845942,-460.0,0.00016986,2]
[367587031,1750867845951,-460.0,0.00016986,2]
[367587033,1750867845960,-623.7,0.00016986,2]
[367587035,1750867845969,-460.0,0.00016986,2]
[367587037,1750867845978,-460.0,0.00016986,2]
[367587039,1750867845988,-460.0,0.00016986,2]
[367587041,1750867845997,-460.0,0.00016986,2]
[367587043,1750867846007,-460.0,0.00016986,2]
[367587045,1750867846016,-460.0,0.00016986,2]
[367587047,1750867846025,-460.0,0.00016986,2]
[367587048,1750867846034,-312.35563035,0.00016986,2]
[367587051,1750867846044,-460.0,0.00016986,2]
[367587052,1750867846053,-460.0,0.00016986,2]
[367587054,1750867846062,-460.0,0.00016986,2]
[367587056,1750867846072,-460.0,0.00016986,2]
[367587058,1750867846081,-561.6,0.00016986,2]
[367587061,1750867846091,-541.14,0.00016986,2]
[367587062,1750867846100,-460.0,0.00016986,2]
[367587064,1750867846110,-517.71169201,0.00016986,2]
[367587067,1750867846119,-460.0,0.00016986,2]
[367587068,1750867846129,-460.0,0.00016986,2]
[367587070,1750867846139,-460.0,0.00016986,2]
[367587072,1750867846149,-460.0,0.00016986,2]
[367587074,1750867846158,-460.0,0.00016986,2]
[367587076,1750867846168,-515.53911097,0.00016986,2]
[367587078,1750867846178,-768.63,0.00016986,2]
[367587080,1750867846188,-428.45471386,0.00016986,2]
[367587082,1750867846197,-533.17,0.00016986,2]
[367587084,1750867846208,-527.5926885,0.00016986,2]
[367587086,1750867846218,-262.14125915,0.00016986,2]
[367587088,1750867846228,-460.0,0.00016986,2]
[367587090,1750867846238,-460.0,0.00016986,2]
[367587092,1750867846247,-460.0,0.00016986,2]
[367587094,1750867846257,-460.0,0.00016986,2]
[367587096,1750867846267,-460.0,0.00016986,2]
[367587098,1750867846276,-633.06,0.00016986,2]
[367587100,1750867846286,-633.06,0.00016986,2]
[367587102,1750867846296,-460.0,0.00016986,2]
[367587104,1750867846305,-460.0,0.00016986,2]
[367587106,1750867846314,-460.0,0.00016986,2]
[367587108,1750867846324,-460.0,0.00016986,2]
[367587110,1750867846334,-500.0,0.00016986,2]
[367587112,1750867846343,-460.0,0.00016986,2]
[367587114,1750867846354,-460.0,0.00016986,2]
[367587116,1750867846364,-460.0,0.00016986,2]
[367587118,1750867846374,-460.0,0.00016986,2]
[367587120,1750867846384,-150.84769655,0.00016986,2]
[367587122,1750867846393,-1385.12,0.00016986,2]
[367587124,1750867846405,-569.25874012,0.00016986,2]
[367587126,1750867846414,-460.0,0.00016986,2]
[367587128,1750867846424,-460.0,0.00016986,2]
[367587130,1750867846434,-1070.18,0.00016986,2]
[367587132,1750867846444,-462.63190724,0.00016986,2]
[367587134,1750867846453,-460.0,0.00016986,2]
[367587135,1750867846462,-460.0,0.00016986,2]
[367587137,1750867846471,-460.0,0.00016986,2]
[367587139,1750867846481,-462.42787728,0.00016986,2]
[367587141,1750867846490,-460.0,0.00016986,2]
[367587143,1750867846499,-460.0,0.00016986,2]
[367587145,1750867846509,-460.0,0.00016986,2]
[367587147,1750867846518,-414.36450241,0.00016986,2]
[367587149,1750867846528,-246.23774509,0.00016986,2]
[367587151,1750867846537,-543.7797676,0.00016986,2]
[367587153,1750867846546,-460.0,0.00016986,2]
[367587155,1750867846555,-460.0,0.00016986,2]
[367587157,1750867846565,-460.0,0.00016986,2]
[367587159,1750867846575,-460.0,0.00016986,2]
[367587161,1750867846584,-454.64,0.00016986,2]
[367587163,1750867846594,-460.0,0.00016986,2]
[367587165,1750867846603,-460.0,0.00016986,2]
[367587167,1750867846613,-460.0,0.00016986,2]
[367587169,1750867846622,-460.0,0.00016986,2]
[367587171,1750867846631,-460.0,0.00016986,2]
[367587173,1750867846640,-460.0,0.00016986,2]
[367587175,1750867846649,-1869.13,0.00016986,2]
[367587177,1750867846659,-488.96,0.00016986,2]
[367587179,1750867846668,-709.89,0.00016986,2]
[367587181,1750867846677,-460.0,0.00016986,2]
[367587182,1750867846687,-460.0,0.00016986,2]
[367587184,1750867846696,-437.73291208,0.00016986,2]
[367587186,1750867846706,-460.0,0.00016986,2]
[367587188,1750867846715,-460.0,0.00016986,2]
[367587190,1750867846724,-460.0,0.00016986,2]
[367587192,1750867846734,-460.0,0.00016986,2]
[367587194,1750867846743,-579.66,0.00016986,2]
[367587196,1750867846752,-1305.25,0.00016986,2]
[367587198,1750867846761,-413.87966159,0.00016986,2]
[367587200,1750867846770,-460.0,0.00016986,2]
[367587202,1750867846780,-460.0,0.00016986,2]
[367587204,1750867846789,-460.0,0.00016986,2]
[367587206,1750867846798,-489.57,0.00016986,2]
[367587208,1750867846807,-2329.61,0.00016986,2]
[367587210,1750867846817,-290.37930729,0.00016986,2]
[367587212,1750867846826,-460.0,0.00016986,2]
[367587214,1750867846835,-536.1,0.00016986,2]
[367587216,1750867846844,-460.0,0.00016986,2]
[367587218,1750867846853,-460.0,0.00016986,2]
[367587220,1750867846862,-460.0,0.00016986,2]
[367587222,1750867846871,-460.0,0.00016986,2]
[367587223,1750867846880,-460.0,0.00016986,2]
[367587225,1750867846893,-460.0,0.00016986,2]
[367587227,1750867846902,-4746.27,0.00016986,2]
[367587229,1750867846911,-423.76,0.00016986,2]
[367587231,1750867846920,-460.0,0.00016986,2]
[367587233,1750867846932,-460.0,0.00016986,2]
[367587235,1750867846941,-460.0,0.00016986,2]
[367587237,1750867846951,-1430.56,0.00016986,2]
[367587239,1750867846962,-460.0,0.00016986,2]
[367587241,1750867846971,-523.7,0.00016986,2]
[367587243,1750867846981,-1185.87,0.00016986,2]
[367587245,1750867846990,-7129.38,0.00016986,2]
[367587247,1750867846999,-939.14,0.00016986,2]
[367587250,1750867847009,-460.0,0.00016986,2]
[367587252,1750867847018,-565.79,0.00016986,2]
[367587254,1750867847027,-460.0,0.00016986,2]
[367587256,1750867847035,-1017.09,0.00016986,2]
[367587258,1750867847045,-460.0,0.00016986,2]
[367587260,1750867847054,-318.16,0.00016986,2]
[367587262,1750867847064,-460.0,0.00016986,2]
[367587264,1750867847073,-648.22,0.00016986,2]
[367587266,1750867847082,-460.0,0.00016986,2]
[367587268,1750867847091,-460.0,0.00016986,2]
[367587270,1750867847101,-3445.34,0.00016986,2]
[367587271,1750867847111,-460.0,0.00016986,2]
[367587273,1750867847120,-762.19,0.00016986,2]
[367587285,1750867847213,-460.0,0.00016986,2]
[367587287,1750867847232,-491.82,0.00016986,2]
[367587289,1750867847242,-460.0,0.00016986,2]
[367587291,1750867847251,-460.0,0.00016986,2]
[367587293,1750867847260,-460.0,0.00016986,2]
[367587295,1750867847270,-8043.92,0.00016986,2]
[367587297,1750867847279,-460.0,0.00016986,2]
[367587299,1750867847288,-589.08015778,0.00016986,2]
[367587301,1750867847298,-460.0,0.00016986,2]
[367587303,1750867847307,-5734.6,0.00016986,2]
[367587305,1750867847316,-460.0,0.00016986,2]
[367587307,1750867847325,-265.00236905,0.00016986,2]
[367587309,1750867847334,-460.0,0.00016986,2]
[367587311,1750867847344,-8605.38,0.00016986,2]
[367587313,1750867847353,-460.0,0.00016986,2]
[367587315,1750867847362,-460.0,0.00016986,2]
[367587317,1750867847371,-598.75925412,0.00016986,2]
[367587319,1750867847381,-2986.69,0.00016986,2]
[367587321,1750867847390,-694.56,0.00016986,2]
[367587323,1750867847400,-1675.72,0.00016986,2]
[367587325,1750867847409,-1410.05,0.00016986,2]
[367587327,1750867847419,-1578.67,0.00016986,2]
[367587329,1750867847429,-460.0,0.00016986,2]
[367587331,1750867847438,-460.0,0.00016986,2]
[367587333,1750867847448,-4187.9,0.00016986,2]
[367587334,1750867847458,-460.0,0.00016986,2]
[367587336,1750867847468,-8661.17,0.00016986,2]
[367587338,1750867847477,-862.47,0.00016986,2]
[367587340,1750867847486,-460.0,0.00016986,2]
[367587342,1750867847502,-421.86175036,0.00016986,2]
[367587344,1750867847511,-460.0,0.00016986,2]
[367587347,1750867847520,-563.8,0.00016986,2]
[367587349,1750867847530,-460.0,0.00016986,2]
[367587351,1750867847540,-460.0,0.00016986,2]
[367587353,1750867847550,-1771.15,0.00016986,2]
[367587355,1750867847559,-492.14427431,0.00016986,2]
[367587357,1750867847568,-697.01,0.00016986,2]